Cogmind - Beta 10.2 @@@ ROGUE MODE // 2021.04.21 @ 01:40:37 Player: gammafunk Result: Self-destructed Performance ------------- Evolutions (3) 1500 Regions Visited (11) 2200 Robots Destroyed (207) 1035 Value Destroyed (6225) 6225 Prototype IDs (26) 520 Alien Tech Used (1) 200 Bonus (565) 565 TOTAL SCORE: 12245 Bonus ------- High Alert Combat Kills 135 Follower Combat Kills 130 Met Data Miner 300 Cogmind --------- Core Integrity 399/700 Matter 290/300 Energy 325/325 System Corruption 0% Temperature Cool (0) Movement Treading (160) Location -7/Data Miner Parts ------- > --- POWER (1) -------- Antimatter Reactor > --- PROPULSION (4) --- Heavy Treads Heavy Treads > --- UTILITY (5) ------ Advanced Signal Interpreter Improved Light Armor Plating Layered Light Armor Plating System Mapper Deep Network Scanner > --- WEAPON (4) ------- Heavy Particle Cannon Gauss Rifle Proton Missile Launcher Spear > --- INVENTORY (4) ---- Antimatter Reactor Gauss Rifle Gauss Rifle Flak Gun Peak State ------------ > --- POWER ------------ Antimatter Reactor > --- PROPULSION ------- Heavy Treads Heavy Treads > --- UTILITY ---------- Advanced Signal Interpreter Improved Light Armor Plating Layered Light Armor Plating System Mapper Deep Network Scanner > --- WEAPON ----------- Heavy Particle Cannon Gauss Rifle Proton Missile Launcher Spear > --- INVENTORY -------- Antimatter Reactor Gauss Rifle Gauss Rifle Flak Gun [Rating: 76] Favorites ----------- Power Antimatter Reactor Engine F-cell Engine Power Core Neutrino Core Reactor Antimatter Reactor Propulsion Armored Treads Treads Armored Treads Utility High-capacity Storage Unit Device Advanced Sensor Array Storage High-capacity Storage Unit Processor Advanced Signal Interpreter Hackware Hacking Suite Protection Light Armor Plating Weapon Autogun Energy Gun Lightning Gun Energy Cannon Heavy Particle Cannon Ballistic Gun Autogun Launcher Grenade Launcher Impact Weapon Great Maul Slashing Weapon Mining Claw Piercing Weapon Spear Build | -11 -10 -10 -9 -9 -8 -7 -7 -7 -7 -7 -7 ------- Run | Scr Mat Min Mat Sto Mat Fac Was Fac Low Low Dat Slots Evolved 6 | . . . 2 . 2 2 . . . . . Power . | . . . . . . . . . . . . Propulsion 1 | . . . . . 1 . . . . . . Utility 3 | . . . 1 . 1 1 . . . . . Weapon 2 | . . . 1 . . 1 . . . . . Parts Attached 262 | 7 14 12 39 18 37 55 6 32 22 12 8 Power 15 | 1 . . 7 1 1 1 2 . . 2 . Engine 11 | 1 . . 7 1 1 1 . . . . . Core 1 | . . . . . . . . . . 1 . Reactor 3 | . . . . . . . 2 . . 1 . Propulsion 38 | 2 5 1 6 4 11 6 2 . 1 . . Treads 38 | 2 5 1 6 4 11 6 2 . 1 . . Leg . | . . . . . . . . . . . . Wheel . | . . . . . . . . . . . . Hover . | . . . . . . . . . . . . Flight . | . . . . . . . . . . . . Utility 95 | 2 4 5 10 3 10 18 2 18 14 3 6 Device 35 | . . 1 . . 1 6 . 12 11 2 2 Storage 15 | 2 2 3 5 . 1 1 1 . . . . Processor 5 | . 1 . . . . 2 1 1 . . . Hackware 4 | . . . . . . 2 . . . . 2 Protection 36 | . 1 1 5 3 8 7 . 5 3 1 2 Artifact . | . . . . . . . . . . . . Weapon 114 | 2 5 6 16 10 15 30 . 14 7 7 2 Energy Gun 9 | . . 1 . . 1 7 . . . . . Energy Cannon 4 | . . . . . . . . . 3 . 1 Ballistic Gun 76 | 2 4 3 14 5 11 19 . 10 1 7 . Ballistic Cannon . | . . . . . . . . . . . . Launcher 14 | . 1 1 2 1 2 2 . 3 1 . 1 Special Weapon . | . . . . . . . . . . . . Impact Weapon 1 | . . . . . 1 . . . . . . Slashing Weapon 5 | . . 1 . 4 . . . . . . . Piercing Weapon 5 | . . . . . . 2 . 1 2 . . Special Melee Weapon . | . . . . . . . . . . . . Unidentified Prototypes 7 | . . 1 1 1 1 . . . 1 . 2 Parts Lost 8 | . . . . . 2 2 . 4 . . . Power . | . . . . . . . . . . . . Propulsion 1 | . . . . . . . . 1 . . . Utility 1 | . . . . . 1 . . . . . . Weapon 6 | . . . . . 1 2 . 3 . . . Highest Loss Streak 2 | . . . . . 1 1 . 2 . . . Average Slot Usage (%) 93 | . 99 99 99 99 98 99 93 90 83 69 79 Engine 7 | . 14 14 10 11 8 7 2 . . . . Reactor 2 | . . . . . . . 4 7 7 7 7 Treads 21 | . 28 28 21 21 26 23 17 14 10 14 14 Device 5 | . . . . . 7 5 4 9 11 12 5 Storage 16 | . 19 14 21 22 18 15 17 15 14 14 2 Processor 3 | . 1 . . . . 3 13 7 7 7 7 Protection 7 | . 7 13 11 11 9 8 . 5 2 1 11 Ballistic Gun 23 | . 24 22 32 30 24 24 30 28 23 5 10 Launcher 1 | . 2 4 . 1 . . . . . . 5 Piercing Weapon 1 | . . . . . . . . . 2 7 7 Naked Turns . | . . . . . . . . . . . . Heaviest Build 130 | 16 30 46 81 72 96 104 130 109 105 98 98 Greatest Support 140 | 40 40 40 40 40 65 76 90 90 140 140 140 Greatest Overweight (x) 2 | . . 1 2 1 2 1 1 1 1 . . Average Overweight (x) . | . . . 1 1 1 1 . 1 . . . Largest Inventory Capacity 28 | 8 10 12 20 18 20 20 28 28 20 20 20 Average Capacity 17 | 5 8 10 18 18 19 20 22 20 20 20 7 Most Carried 28 | 2 10 11 20 18 20 20 28 27 20 20 20 Average Carried 17 | 1 7 10 16 17 19 19 22 19 19 20 7 Final Capacity 28 | 8 10 12 18 18 20 20 28 20 20 20 4 Final Carried 28 | 2 10 11 18 18 20 20 28 20 20 20 4 Class Distribution -------------------- 22% | Hauler-Tank 17% | Mutant 17% | Hauler-Mutant 12% | Tank 8% | Scavenger-Skirmisher 7% | Scavenger-Tank 6% | Hauler-Skirmisher 3% | Scavenger-Mutant Dominant Class ---------------- Mutant | -10/Materials Mutant | -10/Mines Hauler-Tank | -9/Materials Tank | -9/Storage Hauler-Tank | -8/Materials Hauler-Tank | -7/Factory Hauler-Skirmisher | -7/Waste Scavenger-Tank | -7/Factory Scavenger-Skirmisher | -7/Lower Caves Hauler-Mutant | -7/Lower Caves Scavenger-Tank | -7/Data Miner Resources | -11 -10 -10 -9 -9 -8 -7 -7 -7 -7 -7 -7 ----------- Run | Scr Mat Min Mat Sto Mat Fac Was Fac Low Low Dat Matter Collected 8063 | 238 507 138 1128 881 1651 802 435 1394 437 265 187 Remotely . | . . . . . . . . . . . . Salvage Created 9708 | 58 512 32 1613 1263 2117 1031 1371 1390 232 59 30 Parts 488 | 2 35 6 100 58 109 57 30 72 13 2 4 Haulers Intercepted 19 | . 2 . 5 6 6 . . . . . . Recyclers Shooed 5 | . . . 1 1 1 1 . 1 . . . Parts Field Recycled . | . . . . . . . . . . . . Retrieved Matter . | . . . . . . . . . . . . Parts Self-Destructed 11 | . . . . . . . . . 11 . . Prevented 3 | . . . . . . . . . . 3 . Kills | -11 -10 -10 -9 -9 -8 -7 -7 -7 -7 -7 -7 ------- Run | Scr Mat Min Mat Sto Mat Fac Was Fac Low Low Dat Combat Hostiles Destroyed 140 | . 7 3 24 21 32 18 5 23 7 . . Guns 122 | . 7 1 24 21 30 15 5 18 1 . . Cannons 2 | . . . . . . . . . 2 . . AOE 15 | . . 2 . . 2 3 . 4 4 . . Classes Destroyed 17 | 1 5 2 2 1 1 2 1 . 1 1 . Worker 12 | . 1 . 1 . . 2 . 8 . . . Builder 5 | . 1 . . . 1 . . 3 . . . Tunneler 4 | . . 1 2 . . 1 . . . . . Hauler 19 | . 2 . 5 6 6 . . . . . . Recycler 11 | 1 . . 2 1 . 3 1 3 . . . Operator 3 | . . . . 1 2 . . . . . . Watcher 12 | . 3 . 1 2 5 1 . . . . . Swarmer 29 | . . 3 1 4 3 7 . 7 4 . . Grunt 61 | . 7 . 12 11 19 2 . 8 2 . . Brawler 2 | . . . . . 2 . . . . . . Duelist 2 | . . . 2 . . . . . . . . Sentry 32 | . . . 9 6 8 4 . 5 . . . Hunter 4 | . . . . . . 2 . 2 . . . Programmer 4 | . . . . . . 3 . 1 . . . Compactor 5 | . . . . . . . 5 . . . . Tinkerer 1 | . . . . . . . . . . 1 . Mutant 1 | . . . . . . . . . 1 . . Best Kill Streak 7 | 1 3 4 6 4 4 4 2 7 2 . 1 Combat Bots Only 5 | . 2 3 5 4 4 4 2 5 2 . . Max Kills in Single Turn 3 | 1 1 2 2 1 2 2 1 3 2 1 1 Gunslinging 1 | . . . 1 . . . . . . . . Exploded 2 | . . 2 . . 1 2 . 2 2 . . Melee . | . . . . . . . . . . . . Uniques/NPCs Destroyed 1 | . . . . . . . . . . . 1 Data Miner (-7/Data Miner) Combat | -11 -10 -10 -9 -9 -8 -7 -7 -7 -7 -7 -7 -------- Run | Scr Mat Min Mat Sto Mat Fac Was Fac Low Low Dat Damage Taken 6401 | . 468 39 734 714 1105 1270 . 1719 254 55 43 Core 667 | . 58 14 151 92 51 103 . 198 . . . Absorbed by Shields 144 | . . . . . 144 . . . . . . Core Remaining (%) 75 | 100 . 71 . 39 90 . . . . . . Volleys Fired 446 | 3 60 5 70 73 108 49 17 52 9 . . Largest 4 | 2 2 2 3 3 3 4 4 4 4 . . Hottest 159 | 40 40 46 69 69 71 145 116 120 159 . . Shots Fired 1247 | 6 119 6 205 217 305 129 67 164 29 . . Gun 1213 | 6 118 2 204 216 302 126 67 152 20 . . Cannon 5 | . . . . . . . . . 5 . . Launcher 29 | . 1 4 1 1 3 3 . 12 4 . . Special . | . . . . . . . . . . . . Kinetic 1158 | 6 118 2 204 216 296 77 67 152 20 . . Thermal 5 | . . . . . . . . . 5 . . Explosive 19 | . 1 4 1 1 . 3 . 5 4 . . Electromagnetic 65 | . . . . . 9 49 . 7 . . . Robot Hit Streak 26 | 2 15 4 19 21 26 14 18 12 22 . . Robot Miss Streak 7 | 2 7 1 3 2 3 2 4 6 5 . . Penetration Max 1 | . . . . . . . 1 1 . . . Secondary Targets 14 | . 1 . 4 1 2 2 . 4 . . . Max Gunslinging Chain 1 | . 1 . 1 1 1 1 . 1 . . . Shots Hit Robots 884 | 3 80 5 138 162 214 86 54 119 18 4 1 Core Hits 404 | 2 28 4 55 48 86 43 43 76 17 1 1 Critical Hits 9 | . 2 . 1 . 2 1 1 2 . . . Critical Kills 3 | . . . . . . 1 1 1 . . . Critical Parts Destroyed 5 | . 2 . . . 2 . . 1 . . . Melee Attacks 24 | . . 3 . 9 1 3 . . 3 4 1 Impact 1 | . . . . . 1 . . . . . . Slashing 12 | . . 3 . 9 . . . . . . . Piercing 11 | . . . . . . 3 . . 3 4 1 Sneak Attacks 5 | . . . . 1 1 . . . . 2 1 Combat Hostiles . | . . . . . . . . . . . . Follow-up Attacks . | . . . . . . . . . . . . Damage Inflicted 17875 | 28 793 306 2025 2458 3664 2149 1624 3535 777 426 90 Guns 13946 | 28 781 30 1971 2257 3187 1731 1604 2074 283 . . Cannons 125 | . . . . . . . . . 125 . . Explosions 2515 | . . 248 . 31 290 305 . 1363 278 . . Melee 825 | . . . . 96 122 . . . 91 426 90 Ramming 464 | . 12 28 54 74 65 113 20 98 . . . Kinetic 13061 | 28 781 30 1971 2257 3075 958 1604 2074 283 . . Thermal 606 | . . . . . 132 58 . 291 125 . . Explosive 1524 | . . 248 . 31 . 247 . 720 278 . . Electromagnetic 1395 | . . . . . 270 773 . 352 . . . Impact 122 | . . . . . 122 . . . . . . Slashing 96 | . . . . 96 . . . . . . . Piercing 607 | . . . . . . . . . 91 426 90 Highest Corruption 31 | . . . . . . 1 31 31 27 16 . Average Corruption 16 | . . . . . . 1 18 27 19 8 . Corruption Purged 33 | . . . . . . 1 . 5 11 16 . Effects 365 | . . . . . . . 37 160 99 69 . Message Errors 47 | . . . . . . . 3 16 11 17 . Matter Fused 69 | . . . . . . . 4 21 26 18 . Heat Flow Errors 30 | . . . . . . . 3 9 6 12 . Energy Discharges 31 | . . . . . . . . 10 13 8 . Parts Rejected 1 | . . . . . . . . 1 . . . Data Loss (minor) 32 | . . . . . . . 3 11 10 8 . Data Loss (major) 12 | . . . . . . . 1 7 3 1 . Misfires 10 | . . . . . . . 1 4 5 . . Alerts 6 | . . . . . . . . 2 2 2 . Misdirections 42 | . . . . . . . 2 20 17 3 . Targeting Errors 76 | . . . . . . . 18 52 6 . . Weapon Failures 9 | . . . . . . . 2 7 . . . Overload Shots . | . . . . . . . . . . . . Overflow Damage 632 | . . 2 . 66 104 31 . 187 . 242 . Projectiles . | . . . . . . . . . . . . Explosions 196 | . . 2 . . . 31 . 163 . . . Melee 436 | . . . . 66 104 . . 24 . 242 . Knockbacks 5 | . . . 2 1 1 1 . . . . . Impact 5 | . . . 2 1 1 1 . . . . . Kinetic . | . . . . . . . . . . . . Secondary . | . . . . . . . . . . . . Self-Inflicted Damage 96 | . . . . . . . . 62 34 . . Shots 4 | . . . . . . . . 3 1 . . Rammed 45 | . 3 4 7 10 7 9 . 5 . . . Targets Rammed 51 | . 3 4 8 11 7 11 1 6 . . . Kicked . | . . . . . . . . . . . . Crushed 6 | . . . 1 1 . 2 1 1 . . . Highest Temperature 342 | . 28 12 138 126 143 141 247 342 262 270 . Average Temperature 52 | . 10 9 41 30 32 45 67 110 95 100 . Received Heat Transfer 1983 | . 252 . 222 288 555 213 . 402 45 . 6 Effects 3 | . . . . . . . . 1 2 . . Interference 2 | . . . . . . . . . 2 . . Short Circuit 1 | . . . . . . . . 1 . . . Siege Activations . | . . . . . . . . . . . . Robots Corrupted 1 | . . . . . . . . 1 . . . Combat Hostiles 1 | . . . . . . . . 1 . . . Parts Fried 9 | . . . . . . 8 . 1 . . . Impact Corruptions 8 | . . . . . 6 . . 2 . . . Robots Melted . | . . . . . . . . . . . . Combat Hostiles . | . . . . . . . . . . . . Parts Melted . | . . . . . . . . . . . . Heat Transferred 635 | . . . . . 150 50 . 250 185 . . Parts Sabotaged . | . . . . . . . . . . . . Parts Stolen . | . . . . . . . . . . . . Parts Stripped . | . . . . . . . . . . . . Power Chain Reactions 5 | . . . . . 3 1 . 1 . . . Missiles Intercepted . | . . . . . . . . . . . . Alert | -11 -10 -10 -9 -9 -8 -7 -7 -7 -7 -7 -7 ------- Run | Scr Mat Min Mat Sto Mat Fac Was Fac Low Low Dat Peak Influence 729 | 5 235 75 332 475 312 729 260 722 . . . Initial 255 | . 3 . . 34 68 129 255 42 . . . Average 139 | 1 42 16 87 185 143 165 256 277 . . . Maximum Alert Level 3 | . 1 . 1 2 1 3 1 3 . . . Low Security (%) 72 | 100 94 100 91 64 66 78 1 31 . . . Level 1 23 | . 5 . 8 26 33 15 98 56 . . . Level 2 3 | . . . . 9 . 4 . 8 . . . Level 3 . | . . . . . . 1 . 3 . . . Level 4 . | . . . . . . . . . . . . Level 5 . | . . . . . . . . . . . . High Security . | . . . . . . . . . . . . Max Security . | . . . . . . . . . . . . Squads Dispatched 18 | . . 1 . 3 4 4 . 6 . . . Investigation 6 | . . 1 . 2 2 . . 1 . . . Extermination 4 | . . . . . . 3 . 1 . . . Reinforcement 7 | . . . . 1 2 1 . 3 . . . Assault 1 | . . . . . . . . 1 . . . Garrison . | . . . . . . . . . . . . Intercept . | . . . . . . . . . . . . Construction Impeded 2 | . . . . . . . . 2 . . . Haulers Reinforced . | . . . . . . . . . . . . Stealth | -11 -10 -10 -9 -9 -8 -7 -7 -7 -7 -7 -7 --------- Run | Scr Mat Min Mat Sto Mat Fac Was Fac Low Low Dat Distress Signals 10 | . 1 . . 2 4 . . 3 . . . Communications Jammed . | . . . . . . . . . . . . Distress Signals . | . . . . . . . . . . . . Times Spotted 226 | . 14 2 33 38 54 31 6 40 6 1 1 Peak Tracking Total 7 | . 4 3 5 5 7 6 1 6 2 1 1 Tactical Retreats 22 | . 2 . 1 6 8 . 1 3 1 . . Traps | -11 -10 -10 -9 -9 -8 -7 -7 -7 -7 -7 -7 ------- Run | Scr Mat Min Mat Sto Mat Fac Was Fac Low Low Dat Traps Triggered 9 | . 1 . . 2 3 1 . 2 . . . Indirectly . | . . . . . . . . . . . . Trap Hack Attempts . | . . . . . . . . . . . . Triggered . | . . . . . . . . . . . . Disarmed . | . . . . . . . . . . . . Reprogrammed . | . . . . . . . . . . . . Reused . | . . . . . . . . . . . . Traps Extracted . | . . . . . . . . . . . . Installed . | . . . . . . . . . . . . Triggered . | . . . . . . . . . . . . Machines | -11 -10 -10 -9 -9 -8 -7 -7 -7 -7 -7 -7 ---------- Run | Scr Mat Min Mat Sto Mat Fac Was Fac Low Low Dat Machines Disabled 22 | . 1 . . 5 4 . . 11 1 . . Max in Single Turn 8 | . 1 . . 1 1 . . 8 1 . . Garrison Access 1 | . . . . . 1 . . . . . . Machines Sabotaged . | . . . . . . . . . . . . Garrisons Compromised . | . . . . . . . . . . . . Overloaded Fab Kills . | . . . . . . . . . . . . Fab Network Shutdowns 1 | . . . . . . 1 . . . . . Hacking | -11 -10 -10 -9 -9 -8 -7 -7 -7 -7 -7 -7 --------- Run | Scr Mat Min Mat Sto Mat Fac Was Fac Low Low Dat Machines Accessed 60 | . 8 2 7 13 13 10 . 3 . . 4 Terminals 38 | . 6 . 4 11 9 5 . 3 . . . Fabricators 2 | . . . . . . 2 . . . . . Repair Stations 8 | . 1 . 2 2 1 2 . . . . . Recycling Units 4 | . 1 . . . 2 1 . . . . . Scanalyzers 1 | . . . 1 . . . . . . . . Garrison Access 1 | . . . . . 1 . . . . . . Total Hacks 172 | . 28 2 28 34 31 20 . 6 . . 23 Successful 115 | . 23 2 23 14 18 10 . 2 . . 23 Failed 57 | . 5 . 5 20 13 10 . 4 . . . Catastrophic 4 | . . . . 3 . 1 . . . . . Database Lockouts . | . . . . . . . . . . . . Manual 52 | . 10 . 7 11 15 5 . 4 . . . Terminals 100 | . 19 . 13 29 23 10 . 6 . . . Fabricators 6 | . . . . . . 6 . . . . . Repair Stations 33 | . 8 . 13 5 4 3 . . . . . Recycling Units 5 | . 1 . . . 3 1 . . . . . Scanalyzers 2 | . . . 2 . . . . . . . . Garrison Access 1 | . . . . . 1 . . . . . . Terminal Hacks 60 | . 11 2 8 9 7 . . . . . 23 Record 11 | . . . . . . . . . . . 11 Part Schematic 7 | . 1 . . 1 1 . . . . . 4 Robot Schematic 5 | . . . . . . . . . . . 5 Robot Analysis 7 | . 3 . 1 1 2 . . . . . . Prototype ID Bank 9 | . 2 . 3 1 . . . . . . 3 Open Door 5 | . . 2 . 3 . . . . . . . Branch Access Points 1 | . . . 1 . . . . . . . . Alert Level 2 | . 1 . 1 . . . . . . . . Unreport Threat 9 | . 2 . 2 2 3 . . . . . . Locate Traps 2 | . 1 . . . 1 . . . . . . Hauler Manifests 1 | . 1 . . . . . . . . . . Registered Components 1 | . . . . 1 . . . . . . . Fabricator Hacks 4 | . . . . . . 4 . . . . . Load Schematic 1 | . . . . . . 1 . . . . . Build 3 | . . . . . . 3 . . . . . Repair Station Hacks 27 | . 8 . 10 3 4 2 . . . . . Scan Component 14 | . 4 . 5 2 2 1 . . . . . Repair 13 | . 4 . 5 1 2 1 . . . . . Recycling Unit Hacks 5 | . 1 . . . 3 1 . . . . . Report Inventory 2 | . . . . . 1 1 . . . . . Retrieve Components 3 | . 1 . . . 2 . . . . . . Scanalyzer 2 | . . . 2 . . . . . . . . Insert Component 1 | . . . 1 . . . . . . . . Analyze 1 | . . . 1 . . . . . . . . Garrison Access Hacks 1 | . . . . . 1 . . . . . . Seal Access 1 | . . . . . 1 . . . . . . Unauthorized Hacks 16 | . 3 . 3 2 3 3 . 2 . . . Terminals 16 | . 3 . 3 2 3 3 . 2 . . . Botnet 16 | . 3 . 3 2 3 3 . 2 . . . Fabricators . | . . . . . . . . . . . . Repair Stations . | . . . . . . . . . . . . Recycling Units . | . . . . . . . . . . . . Scanalyzers . | . . . . . . . . . . . . Garrison Access . | . . . . . . . . . . . . Data Cores Recovered 1 | . . . . . 1 . . . . . . Used 1 | . . . . . 1 . . . . . . Hacking Detections 49 | . 7 . 7 12 11 9 . 3 . . . Full Trace Events 1 | . . . . 1 . . . . . . . Feedback Events . | . . . . . . . . . . . . Feedback Blocked . | . . . . . . . . . . . . Robot Schematics Acquired 5 | . . . . . . . . . . . 5 Robots Built . | . . . . . . . . . . . . Matter . | . . . . . . . . . . . . Time . | . . . . . . . . . . . . Total Robot Build Rating . | . . . . . . . . . . . . Part Schematics Acquired 8 | . 1 . 1 1 1 . . . . . 4 Parts Built 6 | . . . . . . 6 . . . . . Matter 526 | . . . . . . 526 . . . . . Time 130 | . . . . . . 130 . . . . . Total Part Build Rating 26 | . . . . . . 26 . . . . . Parts Repaired 13 | . 4 . 5 1 2 1 . . . . . Time 446 | . 104 . 135 38 131 38 . . . . . Parts Recycled . | . . . . . . . . . . . . Recycled Matter . | . . . . . . . . . . . . Retrieved Matter . | . . . . . . . . . . . . Retrieved Components 12 | . 3 . . . 9 . . . . . . Parts Scanalyzed 1 | . . . 1 . . . . . . . . Part Schematics Acquired 1 | . . . 1 . . . . . . . . Parts Damaged . | . . . . . . . . . . . . Bothacking | -11 -10 -10 -9 -9 -8 -7 -7 -7 -7 -7 -7 ------------ Run | Scr Mat Min Mat Sto Mat Fac Was Fac Low Low Dat Used RIF Installer . | . . . . . . . . . . . . Robots Hacked . | . . . . . . . . . . . . Non-combat . | . . . . . . . . . . . . Combat . | . . . . . . . . . . . . Robot Hacks Applied . | . . . . . . . . . . . . Relay Couplers Released . | . . . . . . . . . . . . Robots Rewired . | . . . . . . . . . . . . Allies Hacked . | . . . . . . . . . . . . Hacks Repelled . | . . . . . . . . . . . . Allies | -11 -10 -10 -9 -9 -8 -7 -7 -7 -7 -7 -7 -------- Run | Scr Mat Min Mat Sto Mat Fac Was Fac Low Low Dat Total Allies 10 | . . . . 10 . . . . . . . Largest Group 10 | . . . . 10 10 . . . . . . Highest-Rated Group 88 | . . . . 88 88 . . . . . . Highest-Rated Ally 16 | . . . . 16 16 . . . . . . Total Orders 12 | . . . . 2 . . . . . . 10 STAY 10 | . . . . 1 . . . . . . 9 FOLLOW 1 | . . . . 1 . . . . . . . RETURN 1 | . . . . . . . . . . . 1 Ally Attacks 49 | . . . . 4 34 . . . . . 11 Total Damage 371 | . . . . 35 336 . . . . . . Kills 4 | . . . . 1 3 . . . . . . Allies Corrupted . | . . . . . . . . . . . . Allies Melted . | . . . . . . . . . . . . Intel | -11 -10 -10 -9 -9 -8 -7 -7 -7 -7 -7 -7 ------- Run | Scr Mat Min Mat Sto Mat Fac Was Fac Low Low Dat Robot Analysis Total 7 | . 3 . 1 1 2 . . . . . . Derelict Logs Recovered 3 | . . 2 . . . . . . 1 . . Drone Launches 17 | . . . . . . . . . . . 17 Drone Recoveries 6 | . . . . . . . . . . . 6 Exploration | -11 -10 -10 -9 -9 -8 -7 -7 -7 -7 -7 -7 ------------- Run | Scr Mat Min Mat Sto Mat Fac Was Fac Low Low Dat Turns Passed 21125 | 97 1806 1372 2188 2564 3543 2673 407 1601 1778 2580 516 Spaces Moved 9142 | 51 930 777 907 1126 1655 1236 178 735 856 386 305 Core 4 | 4 . . . . . . . . . . . Treads 9138 | 47 930 777 907 1126 1655 1236 178 735 856 386 305 Legs . | . . . . . . . . . . . . Wheels . | . . . . . . . . . . . . Hover . | . . . . . . . . . . . . Flight . | . . . . . . . . . . . . Fastest Speed 50 | 50 160 160 185 185 178 178 165 180 160 160 160 Average Speed 176 | 151 160 169 190 185 179 179 182 184 169 160 160 Slowest Speed 205 | 160 160 185 205 185 205 183 185 185 180 160 160 Overloaded Moves . | . . . . . . . . . . . . Propulsion Burnouts . | . . . . . . . . . . . . Robots Hopped . | . . . . . . . . . . . . Cave-ins Triggered . | . . . . . . . . . . . . Exploration Rate (%) 64 | 5 95 100 64 89 97 32 75 20 73 46 78 Regions Visited 11 Branch Regions 5 Pre-discovered Areas 2 | . . 1 . . . . . . . . 1 Known Exits Taken 4 | . . . 1 . . . . 1 1 1 . Unknown Exits Taken 5 | 1 1 1 . 1 1 . . . . . . Scrap Searched 6 | . . 3 . . . . . . 1 2 . Spaces Dug 23 | . 4 2 5 9 . 2 . . 1 . . Terrain Destroyed 223 | . 4 37 5 9 16 24 1 88 39 . . Melee 5 | . . 2 . . . 2 . . 1 . . Projectile 14 | . . . . . . 6 1 7 . . . AOE 204 | . 4 35 5 9 16 16 . 81 38 . . Terrain Rammed . | . . . . . . . . . . . . Walls Destroyed . | . . . . . . . . . . . . Machines Disabled . | . . . . . . . . . . . . Actions | -11 -10 -10 -9 -9 -8 -7 -7 -7 -7 -7 -7 --------- Run | Scr Mat Min Mat Sto Mat Fac Was Fac Low Low Dat Total 13208 | 62 1140 814 1235 1437 2027 1585 222 860 1152 2343 331 Wait 2993 | . 109 . 157 178 163 185 . 9 255 1931 6 Move 9132 | 50 929 776 906 1125 1654 1236 177 734 855 385 305 Hop . | . . . . . . . . . . . . Pick Up 109 | 2 13 7 22 8 21 15 9 7 3 . 2 Fast Attach 62 | 7 4 3 4 3 8 4 3 6 3 9 8 Attach 19 | . . . 2 . 4 6 1 5 1 . . Detach 10 | . 1 . . . . 3 1 3 . . 2 Swap 182 | . 10 9 33 15 25 45 2 21 19 3 . Drop 180 | . 11 7 33 15 36 28 11 17 4 11 7 Fire 446 | 3 60 5 70 73 108 49 17 52 9 . . Melee 24 | . . 3 . 9 1 3 . . 3 4 1 Ram . | . . . . . . . . . . . . Kick . | . . . . . . . . . . . . Crush 51 | . 3 4 8 11 7 11 1 6 . . . Escape Stasis . | . . . . . . . . . . . . Rewire . | . . . . . . . . . . . . Trap . | . . . . . . . . . . . . Miscellaneous . | . . . . . . . . . . . . Route ------- -11/Scrapyard -10/Materials (discovered 4 exits: *Mat x3 / *Min) -10/Mines (discovered 2 exits: *Mat x2) -9/Materials (discovered 4 exits: *Mat / *Min / *Sto x2) -9/Storage -8/Materials (discovered 3 exits: *Fac x3) -7/Factory -7/Waste -7/Factory -7/Lower Caves -7/Lower Caves -7/Data Miner (discovered 1 exit: [*Pro]) History --------- Turn | Location | Event 8 | -11/Scrapyard | Discovered new exit (range 14) 98 | -11/Scrapyard | Entered Materials 310 | -10/Materials | Build established: Mutant 363 | -10/Materials | Discovered new exit (range 16) 611 | -10/Materials | Discovered new exit (range 12) 762 | -10/Materials | Discovered new exit (range 13) 804 | -10/Materials | Repaired Assault Rifle 831 | -10/Materials | Repaired Lgt. Assault Rifle 1629 | -10/Materials | Discovered new exit (range 6) 1843 | -10/Materials | Repaired Lgt. Treads 1871 | -10/Materials | Repaired Lgt. Treads 1904 | -10/Materials | Entered Mines 2160 | -10/Mines | Met a Derelict shopkeep closing up shop 2258 | -10/Mines | Discovered new exit (range 4) 2273 | -10/Mines | Found the Drone Emporium 2294 | -10/Mines | Found Prototype Device 2294 | -10/Mines | Identified Bomb Drone Bay 2388 | -10/Mines | Learned 2 Materials zone layouts 2392 | -10/Mines | Learned location of Zion (-6) 2441 | -10/Mines | Discovered new exit (range 5) 3276 | -10/Mines | Entered Materials 3276 | -9/Materials | Evolved 2 slots: Utility x1, Weapon x1 3277 | -9/Materials | Identified exit to Storage 3736 | -9/Materials | Build established: Hauler-Tank 4488 | -9/Materials | Build established: Scavenger-Tank 4547 | -9/Materials | Discovered new exit (range 11) 4768 | -9/Materials | Discovered new exit (range 12) 4772 | -9/Materials | Identified exit to Mines 5034 | -9/Materials | Build established: Tank 5217 | -9/Materials | Repaired Arm. Treads 5245 | -9/Materials | Repaired Lgt. Armor Plating 5278 | -9/Materials | Repaired Autogun 5306 | -9/Materials | Repaired Lgt. Armor Plating 5426 | -9/Materials | Repaired Lgt. Armor Plating 5464 | -9/Materials | Entered Storage 6896 | -9/Storage | Core integrity fell below 50% 7237 | -9/Storage | Discovered new exit (range 8) 7424 | -9/Storage | Repaired Arm. Treads 7746 | -9/Storage | Assisted by bots powering up and referring to "LRC-V3" 8028 | -9/Storage | Entered Materials 8028 | -8/Materials | Accompanied by 10 allies 8028 | -8/Materials | Evolved 2 slots: Propulsion x1, Utility x1 8088 | -8/Materials | Build established: Commander-Mutant 8447 | -8/Materials | Build established: Hauler-Tank 8915 | -8/Materials | Discovered new exit (range 16) 9377 | -8/Materials | Repaired Imp. Assault Rifle 9458 | -8/Materials | Repaired F-cell Engine 10318 | -8/Materials | Discovered new exit (range 8) 10798 | -8/Materials | Discovered new exit (range 5) 11317 | -8/Materials | Build established: Hauler-Mutant 11571 | -8/Materials | Entered Factory 11571 | -7/Factory | Evolved 2 slots: Utility x1, Weapon x1 12110 | -7/Factory | Discovered new exit (range 16) 12172 | -7/Factory | Build established: Hauler-Tank 12875 | -7/Factory | Fabricated Adv. Signal Interpreter (x2) 13364 | -7/Factory | Build established: Hauler-Skirmisher 13900 | -7/Factory | Fabricated Coil Gun (x2) 13988 | -7/Factory | Fabricated Coil Gun (x2) 14078 | -7/Factory | Local fabrication network quarantined 14109 | -7/Factory | Repaired Arm. Treads 14244 | -7/Factory | Sucked down chute 14244 | -7/Factory | Entered Waste 14259 | -7/Waste | EMP discharged 14329 | -7/Waste | Spotted C-40 Crusher 14357 | -7/Waste | Destroyed C-40 Crusher 14359 | -7/Waste | EMP discharged 14359 | -7/Waste | System corruption reached 10% 14381 | -7/Waste | Found Damper Plating 14395 | -7/Waste | Spotted C-40 Crusher 14429 | -7/Waste | Destroyed C-40 Crusher 14435 | -7/Waste | Spotted C-40 Crusher 14437 | -7/Waste | Destroyed C-40 Crusher 14459 | -7/Waste | EMP discharged 14488 | -7/Waste | Destroyed C-40 Crusher 14510 | -7/Waste | Found Damper Plating 14559 | -7/Waste | EMP discharged 14559 | -7/Waste | System corruption reached 30% 14559 | -7/Waste | Destroyed C-40 Crusher 14590 | -7/Waste | Found Damper Plating 14629 | -7/Waste | Discovered new exit (range 13) 14649 | -7/Waste | Identified exit to Factory 14651 | -7/Waste | Entered Factory 16187 | -7/Factory | Discovered new exit (range 16) 16220 | -7/Factory | Identified exit to Lower Caves 16251 | -7/Factory | First assault squad dispatched 16252 | -7/Factory | Entered Lower Caves 16253 | -7/Lower Caves | Encountered a Warlord checkpoint 16309 | -7/Lower Caves | Identified exit to Lower Caves 16576 | -7/Lower Caves | Build established: Scavenger-Skirmisher 17087 | -7/Lower Caves | Found Alien Artifact 17087 | -7/Lower Caves | Identified Core Expander 17087 | -7/Lower Caves | Installed Core Expander, added new Propulsion slot 17228 | -7/Lower Caves | Attacked by a delusional Derelict stockpiling parts 17940 | -7/Lower Caves | Build established: Scavenger-Mutant 18030 | -7/Lower Caves | Entered another Lower Caves area 18031 | -7/Lower Caves | Encountered a Warlord checkpoint 18482 | -7/Lower Caves | Build established: Hauler-Mutant 20416 | -7/Lower Caves | Build established: Scavenger-Skirmisher 20586 | -7/Lower Caves | Discovered new exit (range 13) 20608 | -7/Lower Caves | Identified exit to Data Miner 20610 | -7/Lower Caves | Entered Data Miner 20610 | -7/Data Miner | Discovered new exit (range 6) 20641 | -7/Data Miner | Met Data Miner 20670 | -7/Data Miner | Learned location of Section 7 (-2) 20670 | -7/Data Miner | Acquired the access code to Warlord's prototype stash 20697 | -7/Data Miner | Received God Mode back door access code from Data Miner 20987 | -7/Data Miner | Destroyed Data Miner 20987 | -7/Data Miner | Data Conduit disabled 21028 | -7/Data Miner | Found Prototype Hackware 21028 | -7/Data Miner | Identified System Mapper 21031 | -7/Data Miner | Found Prototype Hackware 21031 | -7/Data Miner | Identified Deep Network Scanner 21126 | -7/Data Miner | Self-destructed Last Messages --------------- Bomb Drone detonates. Bomb Drone destroyed. Enhanced Grunt destroyed. Bomb Drone released from Bomb Drone Bay. The unstable cave ceiling collapses. Bomb Drone released from Bomb Drone Bay. The unstable cave ceiling collapses. Bomb Drone released from Bomb Drone Bay. The unstable cave ceiling collapses. Bomb Drone retrieved by Bomb Drone Bay. The unstable cave ceiling collapses. Bomb Drone retrieved by Bomb Drone Bay. The unstable cave ceiling collapses. Dropped Bomb Drone Bay. Acquired Prototype Hackware. Identified System Mapper. Acquired Prototype Hackware. Identified Deep Network Scanner. The unstable cave ceiling collapses. Acquired 10 matter. Map ----- +----------------------------------------------------+ | | | | | | | | | | | | | | | | | | | | | | | | | | | | | ???????????????????????#########?? | | ?????????????????????### #### ### | | ???????????????????### # | | ??????????????????## # # | | ??????????????????# # # ## ## ## | | ??????############# # ## # ### | | ?????"""""""""""""" # #### # #% % | | ????""""""""" " # # # | | ????""""""""" | | ????"""""" | | ???""""""" | | ???""""""@* ! | | ???"""""""= | | ????"""""" "" "" | | ????""""""" ####### | | ????""""""" " #????? | | ?????"""""""" "### #####????? | | ??????######"## "#?###????????? | | ???????????#"### "#????????????? | | ???????????#"### "#????????????? | | ???????????#"## "#????????????? | | ????????????"## "#????????????? | | ?????????????# "#????????????? | | ?????????????### "#????????????? | | ???????????????# "##???????????? | | ??????????????## ""#???????????? | | ???????????#"## ! ""#???????????? | | ??????????##"#"X !""#???????????? | | ??????????""""" ! "####????????? | | ??????????""""" !=X"""""????????? | | ??????????##"#"X! ! "##"#????????? | | ???????????#?##/ ] X""""#????????? | | ??????????????## !! "##"#????????? | | ???????????????#######???????????? | | ?????????????????????????????????? | | ?????????????????????????????????? | +----------------------------------------------------+ Best States ------------- Heat Dissipation 61 Energy Generation 21 Energy Capacity 500 Matter Stores 300 Matter Capacity 300 Sight Range 16 Robot Scan Range 16 Terrain Scan Density 10 Armor Coverage 375 Propulsion Shielding 66 Evasion (%) 40 Targeting Accuracy 5 Armor Integrity Analysis 33 Recoil Reduction 4 Kinecelleration 30 Offensive Hacking 45 Defensive Hacking 10 Item Schematics ----------------- Hcp. Storage Unit | -10/Materials | Hacked Arm. Treads | -9/Materials | Scanalyzed Adv. Sensor Array | -9/Storage | Hacked Adv. Signal Interpreter | -8/Materials | Hacked Combat Drone Bay | -7/Data Miner | Free Lgt. Regenerative Plating | -7/Data Miner | Free Exp. Terrain Scan Processor | -7/Data Miner | Free Plasma Sword | -7/Data Miner | Free Robot Schematics ------------------ S-27 Virus | -7/Data Miner | Free G-50 Soldier | -7/Data Miner | Free L-41 Fighter | -7/Data Miner | Free H-66 Slayer | -7/Data Miner | Free I-36 Angel | -7/Data Miner | Free Fabricated ------------ Adv. Signal Interpreter | x2 | -7/Factory Coil Gun | x2 | -7/Factory | Preloaded Coil Gun | x2 | -7/Factory | Preloaded Alien Tech Used ----------------- Core Expander Achievements -------------- None Challenges ------------ None Game ------ Seed MassMachineDiverter Manual? 0 Play Time 02:09:03 Cumulative 189.7 hours Start 2021.04.20 @ 20:14:28 End 2021.04.21 @ 01:40:37 Sessions 5 Manual Loads 0 Difficulty Rogue Special Mode None Game No. 72 Rogue 72 Adventurer 0 Explorer 0 Win Type - Total 3 Types 1/1/1/0/0/0/0/0/0 Lore% 60 Gallery% 59 Achievement% 56 Wizard Run 0 Options --------- ASCII 0 Keyboard 1 Movement Vi Keybinds 0 Fullscreen 2 Font 12/Smallcaps Map View 60x54 Tactical HUD 0 Map Filters NONE Filters NONE Steam 1 RUN: 4a6780f9-1a17-4c5a-86fb-5c49ed410bc1